bitfinex-derivatives/quotes_BTCF0:USTF0_20250313
["timestamp","ask_amount","ask_price","bid_price","bid_amount"]
[1741851662118,0.4112273,83269.0,83268.0,0.1522037]
[1741851662320,0.3833273,83269.0,83268.0,0.1522037]
[1741851663016,0.3833273,83269.0,83268.0,0.4248037]
[1741851663217,0.3883273,83269.0,83268.0,0.1848037]
[1741851664421,0.3883273,83269.0,83268.0,0.19626408]
[1741851664815,0.1973052,83269.0,83268.0,0.19626408]
[1741851667710,0.1973052,83269.0,83268.0,0.1848037]
[1741851667921,0.1973052,83269.0,83268.0,0.1527037]
[1741851668321,0.2091048,83269.0,83268.0,0.1527037]
[1741851668624,0.1973052,83269.0,83268.0,0.1527037]
[1741851669025,0.1201138,83261.0,83260.0,0.12318013]
[1741851670322,0.13693893,83261.0,83260.0,0.12318013]
[1741851670627,0.14093893,83261.0,83260.0,0.12318013]
[1741851670823,0.14093893,83261.0,83260.0,0.00018013]
[1741851674725,0.1291138,83261.0,83260.0,0.12029543]
[1741851674930,0.1291138,83261.0,83260.0,0.00018013]
[1741851675129,0.1291138,83261.0,83260.0,0.12029543]
[1741851677023,0.1291138,83261.0,83260.0,0.00018013]
[1741851680831,0.009,83261.0,83245.0,0.123]
[1741851681034,0.1802024,83248.0,83247.0,0.1201335]
[1741851681928,0.1802024,83248.0,83247.0,0.1536335]
[1741851682129,0.2463024,83248.0,83247.0,0.1536335]
[1741851682330,0.2463024,83248.0,83247.0,0.1736335]
[1741851682530,0.2463024,83248.0,83247.0,0.1401335]
[1741851682731,0.2463024,83248.0,83247.0,0.1729335]
[1741851683125,0.2463024,83248.0,83247.0,0.0328]
[1741851683435,0.2483024,83248.0,83247.0,0.152934]
[1741851683738,0.2483024,83248.0,83247.0,0.120134]
[1741851684033,0.120134,83247.0,83246.0,0.0332]
[1741851684524,0.186634,83247.0,83246.0,0.0332]
[1741851684727,0.120147,83238.0,83237.0,0.00064]
[1741851684926,0.1201499,83236.0,83235.0,0.40624137]
[1741851685523,0.1869499,83236.0,83235.0,0.40624137]
[1741851686032,0.1869499,83236.0,83235.0,0.28609057]
[1741851686426,0.1869499,83236.0,83235.0,0.40624187]
[1741851686825,0.1869499,83236.0,83235.0,0.47224187]
[1741851687026,0.1869499,83236.0,83235.0,0.47424187]
[1741851687226,0.1869499,83236.0,83235.0,0.47624187]
[1741851688941,0.1869499,83236.0,83235.0,0.1901513]
[1741851692340,0.1869499,83236.0,83235.0,0.07]
[1741851694136,0.1869499,83236.0,83217.0,0.4194]
[1741851694137,0.1201759,83218.0,83217.0,0.4194]
[1741851694329,0.1201759,83218.0,83217.0,0.5609]
[1741851694542,0.1201759,83218.0,83217.0,0.68386]
[1741851694734,0.1201759,83218.0,83217.0,0.5609]
[1741851695041,0.1201759,83218.0,83217.0,0.3109]
[1741851695240,0.13177259,83218.0,83217.0,0.3109]
[1741851695435,0.16637259,83218.0,83217.0,0.3464]
[1741851695732,0.16737259,83218.0,83217.0,0.3494]
[1741851695931,0.1557759,83218.0,83217.0,0.3494]
[1741851696140,0.1557759,83218.0,83217.0,0.4695773]
[1741851696531,0.1547759,83218.0,83217.0,0.5765773]
[1741851696734,0.1547759,83218.0,83217.0,0.4665773]
[1741851696936,0.1537759,83218.0,83217.0,0.4625773]
[1741851697138,0.1537759,83218.0,83217.0,0.4635773]
[1741851697335,0.1537759,83218.0,83217.0,0.47554117]
[1741851697530,0.1537759,83218.0,83217.0,0.59554117]
[1741851697745,0.1537759,83218.0,83217.0,0.47554117]
[1741851698148,0.1537759,83218.0,83217.0,0.72554117]
[1741851698345,0.1537759,83218.0,83217.0,0.47554117]
[1741851698639,0.180259,83223.0,83217.0,0.58536387]
[1741851698848,0.1201759,83219.0,83218.0,0.1201735]
[1741851699038,0.1201759,83219.0,83218.0,0.3909735]
[1741851699441,0.10760971,83234.0,83225.0,0.1201658]
[1741851699747,0.12034455,83226.0,83225.0,0.4801658]
[1741851700552,0.00018025,83226.0,83225.0,0.4801658]
[1741851700846,0.12334455,83226.0,83225.0,0.5109658]
[1741851701437,0.12234455,83226.0,83225.0,0.5109658]
[1741851701640,0.00218025,83226.0,83225.0,0.5109658]
[1741851702449,0.00118025,83226.0,83225.0,0.5109658]
[1741851702944,0.0600749,83236.0,83235.0,0.1201513]
[1741851703136,0.0600749,83236.0,83235.0,0.5031113]
[1741851703337,0.14150971,83242.0,83235.0,0.5031113]
[1741851703338,0.10760971,83242.0,83235.0,0.40296]
[1741851703533,0.28782801,83242.0,83241.0,0.1201427]
[1741851703740,0.1201499,83236.0,83235.0,0.12296]
[1741851704046,0.1201499,83236.0,83235.0,0.5584113]
[1741851704348,0.1201499,83236.0,83235.0,0.43826]
[1741851704540,0.1201499,83236.0,83235.0,0.5584113]
[1741851704740,0.1843499,83236.0,83235.0,0.5584113]
[1741851705146,0.1853499,83236.0,83235.0,0.5584113]
[1741851705545,0.1853499,83236.0,83235.0,0.43826]
[1741851705739,0.1853499,83236.0,83235.0,0.18826]
[1741851705938,0.1853499,83236.0,83235.0,0.15596]
[1741851706539,0.1843499,83236.0,83235.0,0.15596]
[1741851707141,0.1843499,83236.0,83235.0,0.2761113]
[1741851707343,0.1863499,83236.0,83235.0,0.5561113]
[1741851707654,0.1221499,83236.0,83235.0,0.5561113]
[1741851708153,0.1241499,83236.0,83235.0,0.43596]
[1741851708847,0.1896499,83236.0,83235.0,0.43596]
[1741851709745,0.1876499,83236.0,83235.0,0.5561113]
[1741851710352,0.1886499,83236.0,83235.0,0.5561113]
[1741851710553,0.1866499,83236.0,83235.0,0.5561113]
[1741851711344,0.1856499,83236.0,83235.0,0.5561113]
[1741851714258,0.1856499,83236.0,83235.0,0.5571113]
[1741851714454,0.1856499,83236.0,83235.0,0.5896113]
[1741851716254,0.1856499,83236.0,83235.0,0.5906113]
[1741851716954,0.1856499,83236.0,83235.0,0.5896113]
[1741851719957,0.1856499,83236.0,83235.0,0.5886113]
[1741851723163,0.1866499,83236.0,83235.0,0.5886113]
[1741851725466,0.001,83236.0,83235.0,0.6086113]
[1741851725657,0.1540391,83243.0,83242.0,0.1201401]
[1741851725854,0.1860391,83243.0,83242.0,0.3501401]
[1741851726259,0.1860391,83243.0,83242.0,0.3823401]
[1741851726659,0.1860391,83243.0,83242.0,0.3923401]
[1741851727367,0.1880391,83243.0,83242.0,0.3923401]
[1741851727763,0.002,83243.0,83242.0,0.4923401]
[1741851728066,0.003,83243.0,83242.0,0.3923401]
[1741851728369,0.0600558,83262.0,83242.0,0.2722]
[1741851728664,0.0333,83259.0,83242.0,0.60233094]
[1741851728868,0.0326,83260.0,83255.0,0.1201206]
[1741851729068,0.0326,83260.0,83255.0,0.6430406]
[1741851729459,0.0333,83264.0,83260.0,0.1201127]
[1741851729660,0.03348025,83264.0,83260.0,0.4601127]
[1741851729868,0.0326,83263.0,83260.0,0.4601127]
[1741851731358,0.22044727,83261.0,83260.0,0.47204695]
[1741851731563,0.005,83261.0,83260.0,0.47204695]
[1741851732160,0.00018025,83264.0,83263.0,0.1200989]
[1741851732357,0.1840857,83274.0,83273.0,0.1200845]
[1741851732558,0.064,83274.0,83273.0,0.5129645]
[1741851733168,0.0600325,83287.0,83281.0,0.120073]
[1741851733369,0.24931207,83301.0,83281.0,0.410073]
[1741851733370,0.12187556,83282.0,83281.0,0.410073]
[1741851733764,0.18587556,83282.0,83281.0,0.410073]
[1741851734368,0.18587556,83282.0,83281.0,0.390073]
[1741851734569,0.00180196,83282.0,83281.0,0.420073]
[1741851734767,0.1200678,83285.0,83284.0,0.1200686]
[1741851734971,0.1200678,83285.0,83284.0,0.6129486]
[1741851735171,0.0334,83287.0,83286.0,0.1200657]
[1741851735363,0.0334,83287.0,83286.0,0.5000657]
[1741851735670,0.0335,83292.0,83289.0,0.1200614]
[1741851735878,0.12024014,83290.0,83289.0,0.4700614]
[1741851736169,0.18714014,83290.0,83289.0,0.4700614]
[1741851737665,0.19114014,83290.0,83289.0,0.4000614]
[1741851738677,0.00418014,83290.0,83289.0,0.4000614]
[1741851738975,0.12424014,83290.0,83289.0,0.4000614]
[1741851739175,0.12624014,83290.0,83289.0,0.4000614]
[1741851739373,0.15824014,83290.0,83289.0,0.4000614]
[1741851740075,0.03818014,83290.0,83289.0,0.4000614]
[1741851740574,0.19144014,83290.0,83289.0,0.4000614]
[1741851744172,0.07138014,83290.0,83289.0,0.4000614]
[1741851744376,0.19144014,83290.0,83289.0,0.4000614]
[1741851746273,0.19144014,83290.0,83289.0,0.4331614]
[1741851746778,0.07138014,83290.0,83289.0,0.4331614]
[1741851747691,0.19144014,83290.0,83289.0,0.4331614]
[1741851750497,0.07138014,83290.0,83289.0,0.4331614]
[1741851750688,0.00096001,83324.0,83289.0,0.4331614]
[1741851750888,0.0333,83294.0,83293.0,0.1200557]
[1741851751087,0.0333,83294.0,83293.0,0.5728157]
[1741851751597,0.0333,83294.0,83293.0,0.6388157]
[1741851752394,0.0373,83294.0,83293.0,0.6388157]
[1741851753396,0.0373,83294.0,83293.0,0.65057826]
[1741851753590,0.1573542,83294.0,83293.0,0.61827826]
[1741851753902,0.1583542,83294.0,83293.0,0.61827826]
[1741851757595,0.1583542,83294.0,83293.0,0.6065157]
[1741851758293,0.1583542,83294.0,83293.0,0.4500557]
[1741851758498,0.1583542,83294.0,83293.0,0.5728157]
[1741851761191,0.1896542,83294.0,83293.0,0.5728157]
[1741851762599,0.1896542,83294.0,83293.0,0.4500557]
[1741851762794,0.1896542,83294.0,83293.0,0.5727757]
[1741851765300,0.1896542,83294.0,83293.0,0.6058757]
[1741851768402,0.1896542,83294.0,83293.0,0.95517259]
[1741851772706,0.1896542,83294.0,83293.0,1.31523521]
[1741851775904,0.00276109,83326.0,83293.0,1.19517951]
[1741851776103,0.0317,83307.0,83301.0,0.1200441]
[1741851776308,0.0314,83306.0,83301.0,0.6100441]
[1741851776701,0.12022284,83302.0,83301.0,0.6758441]
[1741851777404,0.12122284,83302.0,83301.0,0.6758441]
[1741851777608,0.18762284,83302.0,83301.0,0.6758441]
[1741851777910,0.18662284,83302.0,83301.0,0.6758441]
[1741851778107,0.18762284,83302.0,83301.0,0.6758441]
[1741851780113,0.06758014,83302.0,83301.0,0.6758441]
[1741851781205,0.18762284,83302.0,83301.0,0.6758441]
[1741851782110,0.18762284,83302.0,83301.0,1.0256566]
[1741851784616,0.06758014,83302.0,83301.0,1.0256566]
[1741851784809,0.18762284,83302.0,83301.0,1.0256566]
[1741851785804,0.18762284,83302.0,83301.0,0.6758441]
[1741851786013,0.18762284,83302.0,83301.0,0.49]
[1741851786217,0.18762284,83302.0,83301.0,0.38264]
[1741851787007,0.18762284,83302.0,83301.0,0.2290071]
[1741851787213,0.21758014,83302.0,83293.0,0.42375346]
[1741851787412,0.1200541,83294.0,83293.0,0.42375346]
[1741851788815,0.1200541,83294.0,83293.0,0.54380916]
[1741851789417,0.13183237,83294.0,83293.0,0.56380916]
[1741851790613,0.13183237,83294.0,83293.0,0.77380916]
[1741851790814,0.13183237,83294.0,83293.0,0.79380916]
[1741851791009,0.13183237,83294.0,83293.0,0.3700557]
[1741851792726,0.13183237,83294.0,83293.0,0.3500557]
[1741851793114,0.13183237,83294.0,83293.0,0.3700557]
[1741851793314,0.0322,83296.0,83293.0,0.3700557]
[1741851793523,0.0322,83296.0,83295.0,0.1200528]
[1741851793826,0.1522513,83296.0,83295.0,0.4900528]
[1741851794123,0.1522513,83296.0,83295.0,0.5581528]
[1741851795028,0.0322,83296.0,83295.0,0.5581528]
[1741851795320,0.00018014,83302.0,83301.0,0.1200441]
[1741851795627,0.00018014,83302.0,83301.0,0.7526841]
[1741851795816,0.00018014,83302.0,83301.0,0.8161841]
[1741851796011,0.00018014,83302.0,83301.0,1.0661841]
[1741851796215,0.00018014,83302.0,83301.0,0.8161841]
[1741851797029,0.12022284,83302.0,83301.0,0.8161841]
[1741851797236,0.13222198,83302.0,83301.0,0.8161841]
[1741851797620,0.19812198,83302.0,83301.0,0.8161841]
[1741851799028,0.19812198,83302.0,83301.0,0.40454]
[1741851800318,0.19812198,83302.0,83301.0,0.37264]
[1741851801117,0.19812198,83302.0,83301.0,0.25]
[1741851801323,0.1200513,83296.0,83295.0,0.42375346]
[1741851801527,0.1200513,83296.0,83295.0,0.70375346]
[1741851802221,0.1200513,83296.0,83295.0,0.28]
[1741851806335,0.1200513,83296.0,83295.0,0.4000528]
[1741851806535,0.1200513,83296.0,83295.0,0.4200528]
[1741851806830,0.1200513,83296.0,83295.0,0.4664528]
[1741851808229,0.1200513,83296.0,83295.0,0.4864528]
[1741851809035,0.1200513,83296.0,83295.0,0.3464]
[1741851809437,0.1200513,83296.0,83295.0,0.4664528]
[1741851812028,0.1200513,83296.0,83295.0,0.4864528]
[1741851812728,0.1200513,83296.0,83295.0,0.4664528]
[1741851814436,0.1200513,83296.0,83295.0,0.4864528]
[1741851814735,0.1200513,83296.0,83295.0,0.4664528]
[1741851815435,0.1200513,83296.0,83295.0,0.3464]
[1741851820037,0.1200513,83296.0,83295.0,0.4664528]
[1741851820245,0.1200513,83296.0,83295.0,0.4864528]
[1741851824539,0.00018014,83302.0,83301.0,0.1200441]
[1741851824736,0.12022284,83302.0,83301.0,0.3700441]
[1741851824941,0.12022284,83302.0,83301.0,0.3900441]
[1741851825137,0.12022284,83302.0,83301.0,0.3700441]
[1741851825333,0.13180013,83302.0,83301.0,0.3700441]
[1741851825541,0.19840013,83302.0,83301.0,0.3700441]
[1741851829745,0.19840013,83302.0,83301.0,0.4000441]
[1741851829941,0.19840013,83302.0,83301.0,0.25]
[1741851830146,0.23060013,83302.0,83301.0,0.25]
[1741851830353,0.120047,83299.0,83298.0,0.21550875]
[1741851831151,0.120047,83299.0,83298.0,0.28732595]
[1741851831344,0.23060013,83302.0,83294.0,0.35939286]
[1741851831345,0.1200528,83295.0,83294.0,0.35939286]
[1741851833647,0.1200528,83295.0,83289.0,0.42375346]
[1741851833648,0.15,83295.0,83289.0,0.42375346]
[1741851833850,0.1200657,83286.0,83285.0,0.00018014]
[1741851834647,0.1872657,83286.0,83285.0,0.00018014]
[1741851836551,0.1200744,83280.0,83279.0,0.21770622]
[1741851837350,0.1864744,83280.0,83279.0,0.21770622]
[1741851839056,0.1864744,83280.0,83279.0,0.33778202]
[1741851839260,0.05837393,83295.0,83279.0,0.47770622]
[1741851839562,0.05837393,83295.0,83293.0,0.1200557]
[1741851839563,0.0914279,83294.0,83293.0,0.1200557]
[1741851839853,0.0914279,83294.0,83293.0,0.29]
[1741851840054,0.1230279,83294.0,83293.0,0.29]
[1741851840458,0.063,83294.0,83280.0,0.25907696]
[1741851840665,0.120073,83282.0,83281.0,0.1200723]
[1741851840956,0.120073,83282.0,83281.0,0.4100723]
[1741851842753,0.0600349,83284.0,83281.0,0.29]
[1741851842957,0.0600349,83284.0,83283.0,0.1200701]
[1741851843158,0.0600349,83284.0,83283.0,0.5300701]
[1741851844654,0.0600349,83284.0,83283.0,0.3800701]
[1741851844856,0.0600349,83284.0,83283.0,0.26]
[1741851845161,0.0600349,83284.0,83283.0,0.4000701]
[1741851845463,0.0600349,83284.0,83283.0,0.28]
[1741851845659,0.0600349,83284.0,83283.0,0.26]
[1741851845858,0.0600349,83284.0,83283.0,0.28]
[1741851846059,0.0600349,83284.0,83283.0,0.38248]
[1741851846256,0.0921349,83284.0,83283.0,0.26]
[1741851853266,0.0921349,83284.0,83283.0,0.3800701]
[1741851854768,0.0921349,83284.0,83283.0,0.26]
[1741851855761,0.0921349,83284.0,83283.0,0.292]
[1741851857971,0.0921349,83284.0,83283.0,0.3259]
[1741851858273,0.0921349,83284.0,83283.0,0.33821585]
[1741851858471,0.0921349,83284.0,83283.0,0.45828595]
[1741851858872,0.0921349,83284.0,83283.0,0.33821585]
[1741851859466,0.19978574,83284.0,83283.0,0.33821585]
[1741851860173,0.19978574,83284.0,83283.0,0.30431585]
[1741851860469,0.19978574,83284.0,83283.0,5e-08]
[1741851863464,0.1200744,83280.0,83279.0,0.00180108]
[1741851863974,0.13204776,83280.0,83279.0,0.00180108]
[1741851864378,0.19734776,83280.0,83279.0,0.00180108]
[1741851866770,0.43540248,83280.0,83279.0,0.00180108]
[1741851869275,0.43540248,83280.0,83279.0,0.29180108]
[1741851869475,0.43540248,83280.0,83279.0,0.00180108]
[1741851870182,0.19734776,83280.0,83279.0,0.00180108]
[1741851872774,0.19734776,83280.0,83279.0,8e-08]
[1741851872978,0.1200845,83273.0,83272.0,0.0316]
[1741851873178,0.1200845,83273.0,83272.0,0.0638]
[1741851873872,0.1866845,83273.0,83272.0,0.0638]
[1741851874483,0.1866845,83273.0,83272.0,0.0648]
[1741851874878,0.1866845,83273.0,83272.0,0.0658]
[1741851877283,0.1866845,83273.0,83272.0,0.3358]
[1741851877588,0.1866845,83273.0,83272.0,0.0658]
[1741851879380,0.1866845,83273.0,83272.0,0.1758]
[1741851879580,0.1866845,83273.0,83272.0,0.2958859]
[1741851880992,0.33043138,83273.0,83272.0,0.2958859]
[1741851881994,0.33043138,83273.0,83272.0,0.1758]
[1741851884586,0.33043138,83273.0,83272.0,0.112]
[1741851884991,0.33043138,83273.0,83272.0,0.1778]
[1741851885193,0.1866845,83273.0,83272.0,0.1778]
[1741851889894,0.33043138,83273.0,83272.0,0.1778]
[1741851893591,0.24507135,83273.0,83272.0,0.1778]
[1741851893808,0.24507135,83273.0,83272.0,0.0336]
[1741851895097,0.24507135,83273.0,83272.0,0.0669]
[1741851897398,0.24507135,83273.0,83272.0,0.1869]
[1741851897600,0.24507135,83273.0,83272.0,0.0669]
[1741851898000,0.24507135,83273.0,83272.0,0.3269]
[1741851898200,0.24507135,83273.0,83272.0,0.0669]
[1741851899192,0.05838685,83273.0,83272.0,0.0969]
[1741851899404,0.21529515,83278.0,83275.0,0.0600401]
[1741851899605,0.27533375,83278.0,83277.0,0.1200787]
[1741851899806,0.27533375,83278.0,83277.0,0.4500787]
[1741851900006,0.0600386,83278.0,83277.0,0.5147787]
[1741851900398,0.21625516,83280.0,83279.0,0.1200758]
[1741851900593,0.21529515,83280.0,83279.0,0.5200758]
[1741851901317,0.11289515,83280.0,83279.0,0.5200758]
[1741851901510,0.00180191,83290.0,83279.0,0.5200758]
[1741851901511,0.1200618,83289.0,83288.0,0.1200614]
[1741851901711,0.1200618,83289.0,83288.0,0.38232]
[1741851901899,0.1873618,83289.0,83288.0,0.42232]
[1741851902100,0.1873618,83289.0,83288.0,0.38232]
[1741851904314,0.1873618,83289.0,83288.0,0.26]
[1741851904611,0.29525429,83289.0,83288.0,0.26]
[1741851906305,0.29525429,83289.0,83288.0,0.3800629]
[1741851906705,0.29525429,83289.0,83288.0,0.26]
[1741851906905,0.29525429,83289.0,83288.0,0.3]
[1741851907114,0.29525429,83289.0,83288.0,0.3645]
[1741851907311,0.10789249,83289.0,83288.0,0.4845629]
[1741851907799,0.22795389,83289.0,83288.0,0.3645]
[1741851908407,0.1200614,83289.0,83288.0,0.4845628]
[1741851908605,0.1839614,83289.0,83288.0,0.4845628]
[1741851915312,0.1519614,83289.0,83288.0,0.4845628]
[1741851915512,0.1854614,83289.0,83288.0,0.4845628]
[1741851915917,0.1519614,83289.0,83288.0,0.4845628]
[1741851916313,0.00018014,83297.0,83288.0,0.37634725]
[1741851916516,0.00018014,83297.0,83296.0,0.1200513]
[1741851916720,0.00018014,83297.0,83296.0,0.6623313]
[1741851917021,0.14385666,83303.0,83302.0,0.1200427]
[1741851917217,0.0676,83309.0,83302.0,0.36]
[1741851917413,0.18082083,83310.0,83309.0,0.1200326]
[1741851917614,0.29985203,83310.0,83309.0,0.5523126]
[1741851917814,0.2472337,83317.0,83314.0,0.1200225]
[1741851918021,0.2472337,83317.0,83316.0,0.1200225]
[1741851918218,0.2472337,83317.0,83316.0,0.4900225]
[1741851918721,0.2472337,83317.0,83316.0,0.6766025]
[1741851918910,0.2472337,83317.0,83316.0,0.45658]
[1741851920822,0.2472337,83317.0,83316.0,0.39228]
[1741851922425,0.2472337,83317.0,83316.0,0.27]
[1741851929222,0.0672,83317.0,83312.0,0.1222]
[1741851929428,0.1200268,83313.0,83312.0,0.1222]
[1741851929923,0.1200268,83313.0,83312.0,0.2322]
[1741851930130,0.1200268,83313.0,83312.0,0.1222]
[1741851930328,0.1857268,83313.0,83312.0,0.2422283]
[1741851930921,0.1857268,83313.0,83312.0,0.3863283]
[1741851931121,0.0657,83313.0,83312.0,0.4403283]
[1741851931335,0.0338,83313.0,83312.0,0.4403283]
[1741851931832,0.1538268,83313.0,83312.0,0.4403283]
[1741851933225,0.1861268,83313.0,83312.0,0.4403283]
[1741851933533,0.1861268,83313.0,83312.0,0.3181283]
[1741851933723,0.1861268,83313.0,83312.0,0.4403283]
[1741851938531,0.1861268,83313.0,83312.0,0.3181283]
[1741851938729,0.1861268,83313.0,83312.0,0.25216]
[1741851939531,0.1861268,83313.0,83312.0,0.23216]
[1741851943842,0.1861268,83313.0,83312.0,0.11]
[1741851944539,0.120034,83308.0,83307.0,0.00018014]
[1741851944738,0.120034,83308.0,83307.0,4e-08]
[1741851945428,0.0321,83308.0,83300.0,0.21590514]
[1741851945733,0.1200441,83301.0,83300.0,0.21590514]
[1741851946036,0.1200441,83301.0,83291.0,0.21561561]
[1741851946037,0.1200571,83292.0,83291.0,0.21561561]
[1741851946234,0.2422171,83292.0,83291.0,0.21561561]
[1741851947529,0.2422171,83292.0,83291.0,0.13342761]
[1741851947732,0.1200629,83288.0,83287.0,0.28748748]
[1741851948142,0.13190706,83288.0,83283.0,0.00018014]
[1741851948342,0.1200686,83284.0,83283.0,0.00018014]
[1741851948744,0.0600334,83286.0,83282.0,0.32313143]
[1741851948940,0.0600334,83286.0,83266.0,0.50166068]
[1741851948941,0.1200787,83277.0,83266.0,0.50166068]
[1741851949338,0.1200931,83267.0,83266.0,0.00072]
[1741851949531,0.1200931,83267.0,83266.0,0.01]
[1741851949930,0.13210946,83267.0,83266.0,0.01]
[1741851950335,0.16600946,83267.0,83266.0,0.01]
[1741851951143,0.16500946,83267.0,83266.0,0.013]
[1741851951345,0.19580946,83267.0,83266.0,0.003]
[1741851951742,0.19580946,83267.0,83266.0,0.006]
[1741851955254,0.0600486,83265.0,83262.0,0.1200991]
[1741851955446,0.1201018,83261.0,83260.0,0.1527025]
[1741851955751,0.1201018,83261.0,83260.0,0.2048025]
[1741851955952,0.1201018,83261.0,83260.0,0.0847]
[1741851956855,0.1201018,83261.0,83260.0,0.2048032]
[1741851957152,0.1031018,83261.0,83260.0,0.0847]
[1741851957346,0.1031018,83261.0,83260.0,0.0887]
[1741851957546,0.1031018,83261.0,83260.0,0.2088032]
[1741851958449,0.1051018,83261.0,83260.0,0.2048032]
[1741851958647,0.1081018,83261.0,83260.0,0.2048032]
[1741851959450,0.0600424,83274.0,83273.0,0.120083]
[1741851959941,0.0600424,83274.0,83273.0,0.230083]
[1741851960144,0.0717325,83274.0,83273.0,0.230083]
[1741851960344,0.0717325,83274.0,83273.0,0.260983]
[1741851960646,0.1200804,83278.0,83277.0,0.1801093]
[1741851960951,0.1200804,83278.0,83277.0,0.1300787]
[1741851961349,0.01204773,83285.0,83277.0,0.03]
[1741851961546,0.17903365,83286.0,83285.0,0.1200672]
[1741851961758,0.29909935,83286.0,83285.0,0.4822272]
[1741851961950,0.29909935,83286.0,83285.0,0.36216]
[1741851962151,0.1200657,83286.0,83285.0,0.36216]
[1741851962346,0.1320564,83286.0,83285.0,0.36216]
[1741851963056,0.1656564,83286.0,83285.0,0.36216]
[1741851964054,0.1676564,83286.0,83285.0,0.36216]
[1741851964657,0.1656564,83286.0,83285.0,0.36216]
[1741851964856,0.1666564,83286.0,83285.0,0.36216]
[1741851965262,0.1676564,83286.0,83285.0,0.36216]
[1741851965452,0.1666564,83286.0,83285.0,0.36216]
[1741851965652,0.1676564,83286.0,83285.0,0.24]
[1741851965850,0.1666564,83286.0,83285.0,0.24]
[1741851966060,0.1200773,83278.0,83277.0,0.00018014]
[1741851967050,0.1854773,83278.0,83277.0,0.00018014]
[1741851968164,0.1884773,83278.0,83277.0,0.00018014]
[1741851968362,0.1894773,83278.0,83277.0,0.00018014]
[1741851968964,0.1904773,83278.0,83277.0,0.00018014]
[1741851971166,0.1894773,83278.0,83277.0,0.00018014]
[1741851971460,0.1904773,83278.0,83277.0,0.00018014]
[1741851972452,0.1894773,83278.0,83277.0,0.00018014]
[1741851972656,0.1904773,83278.0,83277.0,0.00018014]
[1741851973568,0.1904773,83278.0,83277.0,4e-08]
[1741851973866,0.1864773,83278.0,83277.0,4e-08]
[1741851974058,0.1904773,83278.0,83277.0,4e-08]
[1741851974659,0.1864773,83278.0,83277.0,4e-08]
[1741851974863,0.1894773,83278.0,83277.0,4e-08]
[1741851975066,0.1904773,83278.0,83277.0,4e-08]
[1741851975663,0.1904773,83278.0,83246.0,0.00180178]
[1741851975664,0.1201004,83262.0,83261.0,0.031]
[1741851975863,0.1201004,83262.0,83261.0,0.064]
[1741851976873,0.120122,83247.0,83246.0,0.00180178]
[1741851977064,0.120122,83247.0,83246.0,0.03180178]
[1741851977465,0.120122,83247.0,83246.0,0.09550178]
[1741851978567,0.13184333,83247.0,83246.0,0.09550178]
[1741851978769,0.13184333,83247.0,83246.0,0.09650178]
[1741851979469,0.13184333,83247.0,83246.0,0.0947]
[1741851980668,0.16534333,83247.0,83246.0,0.0647]
[1741851980865,0.01172133,83247.0,83246.0,0.2147]
[1741851981164,0.27617441,83267.0,83246.0,0.2147]
[1741851981165,0.21612781,83267.0,83254.0,0.0600557]
[1741851981374,0.120109,83256.0,83255.0,0.07]
[1741851981573,0.120109,83256.0,83255.0,0.09]
[1741851981869,0.120109,83256.0,83255.0,0.2101105]
[1741851983078,0.120109,83256.0,83255.0,0.09]
[1741851984274,0.122109,83256.0,83255.0,0.2101105]
[1741851984474,0.122109,83256.0,83255.0,0.09]
[1741851984676,0.123109,83256.0,83255.0,0.2101105]
[1741851985574,0.123109,83256.0,83255.0,0.09]
[1741851987181,0.123109,83256.0,83255.0,0.07]
[1741851991077,0.156209,83256.0,83255.0,0.31]
[1741851991277,0.156209,83256.0,83255.0,0.07]
[1741851991479,0.156209,83256.0,83255.0,0.19]
[1741852002182,0.17928664,83259.0,83255.0,0.34212]
[1741852002387,0.2151678,83268.0,83267.0,0.1200931]
[1741852002579,0.0704,83285.0,83275.0,0.1200816]
[1741852002883,0.1200791,83277.0,83275.0,0.4000816]
[1741852003090,0.12188224,83276.0,83275.0,0.4000816]
[1741852005185,0.12388224,83276.0,83275.0,0.4000816]
[1741852005590,0.00380204,83276.0,83275.0,0.4000816]
[1741852006190,0.00380204,83276.0,83275.0,0.4681816]
[1741852006397,0.1200705,83283.0,83282.0,0.1200701]
[1741852006594,0.1200705,83283.0,83282.0,0.4921501]
[1741852006896,0.15495024,83284.0,83283.0,0.1200701]
[1741852007194,1e-08,83285.0,83283.0,0.5000701]
[1741852007380,1e-08,83285.0,83284.0,0.1200686]
[1741852007691,1e-08,83285.0,83284.0,0.6000686]
[1741852008690,0.1200411,83304.0,83289.0,0.0600306]
[1741852008879,0.12184575,83301.0,83300.0,0.1200456]
[1741852009191,0.12184575,83301.0,83300.0,0.5221256]
[1741852009375,0.12184575,83301.0,83300.0,0.5021256]
[1741852010489,0.12184575,83301.0,83300.0,0.5321256]
[1741852011684,0.12184575,83301.0,83300.0,0.5021256]
[1741852011893,0.12284575,83301.0,83300.0,0.5021256]
[1741852012096,0.15614575,83301.0,83300.0,0.5021256]
[1741852013902,0.15614575,83301.0,83300.0,0.5321256]
[1741852014089,0.15614575,83301.0,83300.0,0.4100456]
[1741852014297,0.15614575,83301.0,83300.0,0.38204]
[1741852014686,0.15614575,83301.0,83300.0,0.26]
[1741852014882,0.1200557,83293.0,83292.0,0.12222014]
[1741852015388,0.1200557,83293.0,83292.0,0.24222014]
[1741852015787,0.1882557,83293.0,83292.0,0.36227724]
[1741852016094,0.1892557,83293.0,83292.0,0.36227724]
[1741852018698,0.1892557,83293.0,83292.0,0.38227724]
[1741852018898,0.1892557,83293.0,83292.0,0.36227724]
[1741852021206,0.1892557,83293.0,83292.0,0.39227724]
[1741852021501,0.1892557,83293.0,83292.0,0.36227724]
[1741852021806,0.1892557,83293.0,83292.0,0.38227724]
[1741852022107,0.0352,83293.0,83292.0,0.36227724]
[1741852022309,0.0672,83300.0,83299.0,0.120047]
[1741852022492,0.0344,83308.0,83307.0,0.1200355]
[1741852022698,0.1528292,83312.0,83309.0,0.0600156]
[1741852022907,0.1544311,83311.0,83310.0,0.1200312]
[1741852023106,0.1544311,83311.0,83310.0,0.5000312]
[1741852023705,0.0356,83319.0,83310.0,0.39182609]
[1741852023907,0.2400515,83317.0,83316.0,0.1200196]
[1741852024096,0.2400515,83317.0,83316.0,0.4620196]
[1741852024295,0.3070515,83317.0,83316.0,0.4620196]
[1741852027106,0.3070515,83317.0,83316.0,0.4620225]
[1741852029309,0.3070515,83317.0,83316.0,0.342]
[1741852029993,0.3070515,83317.0,83316.0,0.22]
[1741852030405,0.1200225,83316.0,83315.0,0.12196]
[1741852030605,0.1200312,83310.0,83309.0,0.1200317]
[1741852030804,0.1200312,83310.0,83309.0,0.40196]
[1741852030999,0.1200312,83310.0,83309.0,0.5219926]
[1741852031608,0.1876312,83310.0,83309.0,0.5219926]